bitfinex/quotes_SOLUSD_20250310
["timestamp","ask_amount","ask_price","bid_price","bid_amount"]
[1741610008617,37.47683276,128.89,128.87,0.03]
[1741610008823,88.8581,128.9,128.87,37.50683276]
[1741610009019,81.1,128.9,128.88,37.47683276]
[1741610009345,88.8581,128.9,128.87,0.03]
[1741610009525,7.7581,128.9,128.87,0.03]
[1741610009832,0.14216157,128.89,128.87,0.03]
[1741610010034,37.61899433,128.89,128.87,0.03]
[1741610011238,0.14216157,128.89,128.87,0.03]
[1741610011419,7.7581,128.9,128.87,0.03]
[1741610011931,7.7581,128.9,128.87,37.50683276]
[1741610012833,81.1,128.95,128.89,37.47683276]
[1741610013137,26.54731043,128.94,128.9,37.47683276]
[1741610013435,83.41294319,128.94,128.89,37.47683276]
[1741610014422,83.41294319,128.94,128.88,37.47683276]
[1741610014617,7.89766157,128.94,128.9,37.47683276]
[1741610014920,7.89676157,128.96,128.93,37.47683276]
[1741610015116,7.89676157,128.96,128.88,37.47683276]
[1741610015117,18.933972,128.95,128.88,37.47683276]
[1741610015326,56.41080476,128.95,128.9,37.47683276]
[1741610015739,18.933972,128.95,128.91,37.47683276]
[1741610016527,7.7543,128.96,128.93,37.47683276]
[1741610016726,100.4827,128.99,128.94,37.47683276]
[1741610016932,0.063,128.96,128.91,20.0]
[1741610017134,0.063,128.96,128.95,37.47683276]
[1741610017451,0.063,128.96,128.93,37.47683276]
[1741610017655,0.063,128.96,128.95,37.47683276]
[1741610020045,0.063,128.96,128.94,37.47683276]
[1741610020234,0.063,128.96,128.95,37.47683276]
[1741610020430,0.063,128.96,128.94,37.47683276]
[1741610020645,0.063,128.96,128.93,1.6635]
[1741610020850,0.063,128.96,128.93,37.47683276]
[1741610021078,0.063,128.96,128.92,37.47683276]
[1741610021346,0.063,128.96,128.93,37.47683276]
[1741610021548,37.53983276,128.96,128.89,1.5491]
[1741610021755,37.61899433,128.94,128.89,39.02593276]
[1741610022157,37.61899433,128.94,128.88,37.47683276]
[1741610022363,37.47683276,128.93,128.88,37.47683276]
[1741610022561,64.62533276,128.92,128.87,37.50683276]
[1741610022772,37.61899433,128.91,128.87,0.03]
[1741610023144,37.47683276,128.9,128.87,0.03]
[1741610023671,37.7611559,128.91,128.87,0.03]
[1741610025369,0.14216157,128.89,128.87,0.03]
[1741610025678,0.14216157,128.88,128.87,0.03]
[1741610026865,88.8579,128.9,128.87,0.03]
[1741610027243,0.14216157,128.89,128.87,0.03]
[1741610027444,0.28432314,128.89,128.87,0.03]
[1741610028972,37.7611559,128.89,128.87,0.03]
[1741610029470,8.04342314,128.88,128.87,0.03]
[1741610030180,0.14216157,128.87,128.82,37.50683276]
[1741610030554,37.47683276,128.86,128.82,0.03]
[1741610031066,37.47683276,128.85,128.82,0.03]
[1741610031269,37.7611559,128.87,128.82,0.03]
[1741610031456,7.7603,128.86,128.82,37.50683276]
[1741610031661,7.7603,128.86,128.83,37.47683276]
[1741610032570,126.33633276,128.88,128.83,37.47683276]
[1741610032769,37.47683276,128.87,128.82,37.50683276]
[1741610032965,81.1,128.88,128.83,37.47683276]
[1741610033185,81.24216157,128.91,128.85,37.47683276]
[1741610033356,45.37689433,128.9,128.85,37.47683276]
[1741610033871,37.47683276,128.88,128.83,37.47683276]
[1741610034659,37.47683276,128.89,128.84,37.47683276]
[1741610035589,37.47683276,128.87,128.82,37.50683276]
[1741610035800,7.90176157,128.88,128.83,37.47683276]
[1741610035801,7.7596,128.88,128.83,37.47683276]
[1741610036289,45.37719433,128.9,128.85,37.47683276]
[1741610036855,37.47683276,128.89,128.84,37.47683276]
[1741610037061,45.37719433,128.9,128.84,37.47683276]
[1741610037259,37.47683276,128.88,128.83,37.47683276]
[1741610037479,7.7597,128.87,128.83,37.47683276]
[1741610038393,45.23653276,128.87,128.82,37.50683276]
[1741610038764,19.3975,128.89,128.84,37.47683276]
[1741610038765,7.7585,128.89,128.84,37.47683276]
[1741610039279,45.23533276,128.89,128.84,37.47683276]
[1741610040486,37.7611559,128.88,128.83,37.50683276]
[1741610040785,37.47683276,128.87,128.83,0.03]
[1741610040990,37.61899433,128.87,128.83,0.03]
[1741610041186,0.14216157,128.87,128.83,0.03]
[1741610041385,118.57683276,128.88,128.83,37.50683276]
[1741610041893,88.8595,128.88,128.83,37.50683276]
[1741610042058,88.8595,128.88,128.83,0.03]
[1741610042059,37.47683276,128.85,128.83,0.03]
[1741610042265,23.71921465,128.84,128.83,0.03]
[1741610042463,23.86137622,128.84,128.83,0.03]
[1741610042683,18.79181043,128.83,128.82,0.03]
[1741610042879,23.71921465,128.83,128.82,0.03]
[1741610043187,6.5662,128.86,128.82,0.03]
[1741610043384,23.71921465,128.84,128.82,0.03]
[1741610043561,23.71921465,128.83,128.82,0.03]
[1741610043883,64.57312508,128.83,128.82,0.0001]
[1741610044284,78.73085222,128.83,128.82,0.0001]
[1741610045267,102.16563244,128.83,128.82,0.0001]
[1741610046469,64.43085222,128.83,128.82,0.0001]
[1741610046897,7.90426157,128.83,128.82,0.0001]
[1741610047396,64.43085222,128.83,128.82,0.0001]
[1741610048992,20.466272,128.82,128.79,2.6180616]
[1741610049162,56.52659065,128.8,128.79,2.6180616]
[1741610050080,56.52659065,128.8,128.79,6.16e-05]
[1741610050081,56.66875222,128.8,128.79,6.16e-05]
[1741610050280,70.47815222,128.8,128.71,37.73478022]
[1741610050585,37.87694179,128.74,128.63,7.6467]
[1741610050773,37.73478022,128.73,128.68,37.73478022]
[1741610050971,37.73478022,128.73,128.64,37.73478022]
[1741610051171,0.14216157,128.74,128.7,37.73478022]
[1741610051387,0.14216157,128.73,128.69,37.73478022]
[1741610051565,37.87694179,128.73,128.68,37.73478022]
[1741610051767,0.14216157,128.78,128.67,20.0]
[1741610052077,0.14216157,128.78,128.72,37.73478022]
[1741610052276,0.14216157,128.79,128.75,37.73478022]
[1741610052485,22.0633,128.81,128.76,37.73478022]
[1741610052669,0.28432314,128.8,128.76,37.73478022]
[1741610052873,38.01910336,128.8,128.75,37.73478022]
[1741610053076,37.73478022,128.79,128.74,37.73478022]
[1741610053290,38.01910336,128.8,128.75,37.73478022]
[1741610053464,38.01910336,128.8,128.76,37.73478022]
[1741610053465,0.28432314,128.8,128.76,37.73478022]
[1741610053967,38.01910336,128.8,128.74,37.73478022]
[1741610054174,7.7645,128.79,128.74,37.73478022]
[1741610054364,45.49928022,128.79,128.74,37.73478022]
[1741610054764,7.7645,128.79,128.75,37.73478022]
[1741610054997,8.04842314,128.8,128.75,37.73478022]
[1741610055167,52.03478022,128.81,128.77,37.73478022]
[1741610055168,7.7636,128.81,128.77,37.73478022]
[1741610055371,37.73478022,128.8,128.75,37.73478022]
[1741610056602,7.7645,128.79,128.75,37.73478022]
[1741610058387,88.8624,128.83,128.78,37.73478022]
[1741610058596,89.14622314,128.84,128.81,37.73478022]
[1741610058768,89.14622314,128.84,128.8,37.73478022]
[1741610058965,126.88100336,128.84,128.79,37.73478022]
[1741610059170,38.01910336,128.83,128.78,37.73478022]
[1741610059374,119.11910336,128.83,128.78,37.73478022]
[1741610059693,81.1,128.83,128.8,37.73478022]
[1741610060073,81.1,128.83,128.81,37.73478022]
[1741610060273,89.00326157,128.85,128.81,37.73478022]
[1741610060476,126.73804179,128.85,128.8,37.73478022]
[1741610060882,38.01910336,128.84,128.79,37.73478022]
[1741610061084,38.01910336,128.84,128.78,37.73478022]
[1741610061085,37.73478022,128.83,128.78,37.73478022]
[1741610061278,38.01910336,128.84,128.79,37.73478022]
[1741610061977,64.90228022,128.83,128.78,37.73478022]
[1741610062174,37.73478022,128.82,128.77,39.31368022]
[1741610062683,38.01910336,128.8,128.75,37.73478022]
[1741610062884,81.1,128.8,128.77,37.73478022]
[1741610063084,81.1,128.8,128.78,37.73478022]
[1741610063281,146.00228022,128.83,128.77,37.73478022]
[1741610063606,37.73478022,128.82,128.77,37.73478022]
[1741610064073,7.7633,128.81,128.78,37.73478022]
[1741610064277,7.7629,128.82,128.78,37.73478022]
[1741610064597,45.49768022,128.82,128.77,37.73478022]
[1741610064907,37.73478022,128.81,128.74,7.5947]
[1741610065202,88.8629,128.82,128.78,37.73478022]
[1741610065408,7.7629,128.82,128.78,37.73478022]
[1741610065613,64.90458022,128.82,128.77,37.73478022]
[1741610065898,7.8259,128.82,128.78,37.73478022]
[1741610066127,7.8259,128.82,128.75,0.03]
[1741610066309,37.73478022,128.79,128.74,1.5789]
[1741610066612,37.73478022,128.78,128.74,1.5789]
[1741610066898,0.28432314,128.79,128.74,39.31368022]
[1741610067096,38.01910336,128.79,128.74,1.5789]
[1741610067281,37.73478022,128.76,128.74,4.895544]
[1741610067503,118.83478022,128.76,128.74,4.895544]
[1741610067700,81.1,128.76,128.74,4.895544]
[1741610068111,7.7669,128.75,128.74,4.895544]
[1741610068905,88.8665,128.76,128.74,4.895544]
[1741610071317,81.1,128.76,128.75,37.73478022]
[1741610071898,7.7658,128.77,128.74,42.63032422]
[1741610072127,7.7645,128.79,128.75,37.73478022]
[1741610072693,45.49928022,128.79,128.74,42.63032422]
[1741610073022,45.49928022,128.79,128.74,4.895544]
[1741610073023,119.11910336,128.78,128.74,4.895544]
[1741610073916,38.01910336,128.76,128.74,4.895544]
[1741610074096,37.73478022,128.75,128.74,4.895544]
[1741610074396,52.26180336,128.75,128.74,4.4e-05]
[1741610077120,70.91145222,128.75,128.74,4.4e-05]
[1741610078007,64.43565222,128.75,128.74,4.4e-05]
[1741610078208,7.7669,128.75,128.74,0.030044]
[1741610078801,7.7664,128.76,128.74,0.030044]
[1741610079004,7.766,128.77,128.74,37.76482422]
[1741610079415,7.766,128.77,128.74,0.030044]
[1741610079918,11.94487097,128.8,128.74,37.76482422]
[1741610080122,7.7645,128.79,128.74,37.76482422]
[1741610080419,7.7645,128.79,128.76,37.73478022]
[1741610080818,7.7645,128.79,128.75,37.73478022]
[1741610081017,7.7645,128.79,128.76,37.73478022]
[1741610081414,0.063,128.82,128.77,37.73478022]
[1741610081415,7.7641,128.8,128.77,37.73478022]
[1741610081611,7.7636,128.81,128.78,37.73478022]
[1741610082310,7.7636,128.81,128.77,37.73478022]
[1741610082506,7.7636,128.81,128.74,0.03]
[1741610082708,45.49838022,128.81,128.76,37.73478022]
[1741610083127,7.7636,128.81,128.77,37.73478022]
[1741610085321,45.49838022,128.81,128.76,37.73478022]
[1741610086024,37.73478022,128.79,128.74,37.76478022]
[1741610086206,37.73478022,128.77,128.74,0.03]
[1741610086412,45.50108022,128.76,128.74,0.03]
[1741610086712,7.7663,128.76,128.74,0.03]
[1741610087015,88.8659,128.77,128.74,0.03]
[1741610087216,45.50018022,128.78,128.74,0.03]
[1741610087411,37.73478022,128.77,128.74,0.03]
[1741610088412,7.7663,128.76,128.74,0.03]
[1741610088937,45.50108022,128.76,128.74,0.03]
[1741610089117,38.01910336,128.75,128.74,0.03]
[1741610089520,126.60108022,128.76,128.74,0.03]
[1741610089836,88.8663,128.76,128.74,0.03]
[1741610090041,126.60108022,128.76,128.74,0.03]
[1741610090445,45.50108022,128.76,128.74,0.03]
[1741610090737,81.1,128.78,128.75,37.73478022]
[1741610090938,88.8652,128.78,128.74,37.76478022]
[1741610091932,7.8276,128.79,128.76,37.73478022]
[1741610092424,0.063,128.79,128.76,37.73478022]
[1741610093334,0.063,128.79,128.76,1.5421]
[1741610093641,37.79778022,128.79,128.73,37.73478022]
[1741610093821,37.79778022,128.79,128.72,1.5421]
[1741610093822,0.063,128.79,128.75,37.73478022]
[1741610095042,0.063,128.79,128.77,37.73478022]
[1741610095345,37.79778022,128.79,128.72,1.5421]
[1741610095522,37.79778022,128.79,128.74,37.73478022]
[1741610095724,37.73478022,128.78,128.72,39.27688022]
[1741610095942,37.73478022,128.77,128.72,39.27688022]
[1741610096130,37.73478022,128.76,128.72,1.5421]
[1741610096336,37.73478022,128.77,128.72,39.27688022]
[1741610096537,45.50108022,128.76,128.72,1.5421]
[1741610096721,37.73478022,128.75,128.69,37.73478022]
[1741610097046,37.73478022,128.75,128.7,37.73478022]
[1741610097340,37.73478022,128.75,128.69,37.73478022]
[1741610097537,38.01910336,128.75,128.7,37.73478022]
[1741610098123,81.1,128.75,128.71,37.73478022]
[1741610098653,7.7675,128.74,128.71,37.73478022]
[1741610098941,7.7675,128.74,128.7,37.73478022]
[1741610099323,7.7675,128.74,128.68,1.5992]
[1741610099522,7.7675,128.74,128.69,37.73478022]
[1741610100131,7.7675,128.74,128.7,37.73478022]
[1741610100531,37.73478022,128.73,128.68,39.33398022]
[1741610100736,45.50228022,128.74,128.69,37.73478022]
[1741610101136,81.1,128.75,128.72,37.73478022]
[1741610101337,7.7666,128.76,128.72,37.73478022]
[1741610101640,45.50138022,128.76,128.71,37.73478022]
[1741610101836,7.7666,128.76,128.71,37.73478022]
[1741610102348,45.50138022,128.76,128.71,37.73478022]
[1741610102544,64.91728022,128.76,128.7,37.73478022]
[1741610103043,37.73478022,128.72,128.64,1.5163]
[1741610103229,37.73478022,128.74,128.68,37.73478022]
[1741610103429,37.73478022,128.73,128.68,37.73478022]
[1741610103645,118.97694179,128.75,128.7,37.73478022]
[1741610104028,81.1,128.75,128.72,0.03]
[1741610104444,38.01910336,128.73,128.72,0.03]
[1741610104946,45.78720336,128.73,128.72,0.03]
[1741610105154,7.7681,128.73,128.72,0.03]
[1741610106528,45.50288022,128.73,128.72,0.03]
[1741610106734,45.78720336,128.73,128.72,0.03]
[1741610107650,7.7681,128.73,128.72,0.03]
[1741610107853,45.50168022,128.75,128.72,0.03]
[1741610108036,7.7662,128.77,128.74,37.73478022]
[1741610108859,7.7653,128.78,128.75,37.73478022]
[1741610109065,0.28432314,128.77,128.73,37.73478022]
[1741610109254,37.73478022,128.75,128.72,0.03]
[1741610109434,37.73478022,128.74,128.72,0.03]
[1741610109851,37.73478022,128.75,128.72,0.03]
[1741610110635,81.1,128.76,128.72,0.03]
[1741610110850,81.1,128.76,128.73,37.73478022]
[1741610111055,88.8668,128.76,128.74,37.73478022]
[1741610111231,7.7668,128.76,128.74,37.73478022]
[1741610111542,7.7668,128.76,128.72,37.76478022]
[1741610112054,7.7668,128.76,128.73,37.73478022]
[1741610112357,7.7668,128.76,128.74,37.73478022]
[1741610112555,7.7651,128.78,128.74,37.73478022]
[1741610112735,7.7651,128.78,128.75,37.73478022]
[1741610113163,7.8275,128.79,128.72,0.03]
[1741610113465,0.063,128.79,128.78,37.73478022]
[1741610113645,0.063,128.79,128.77,37.73478022]
[1741610113958,0.063,128.79,128.76,1.556]
[1741610114379,0.063,128.79,128.77,37.73478022]
[1741610115241,0.063,128.79,128.76,39.29078022]
[1741610115556,0.063,128.79,128.78,37.73478022]
[1741610116259,81.163,128.82,128.78,37.73478022]
[1741610116260,0.063,128.82,128.78,37.73478022]
[1741610116460,0.063,128.82,128.81,37.73478022]
[1741610117153,0.063,128.82,128.81,83.65776044]
[1741610117357,0.063,128.82,128.81,45.92298022]
[1741610117762,0.063,128.82,128.81,83.65776044]
[1741610118450,0.063,128.82,128.81,45.92298022]
[1741610119439,0.063,128.82,128.81,8.1882]
[1741610119743,0.063,128.82,128.81,83.65776044]
[1741610120961,0.063,128.87,128.84,20.0]
[1741610121165,0.063,128.87,128.86,37.73478022]
[1741610123443,0.063,128.87,128.86,39.34938022]
[1741610124157,0.063,128.87,128.86,1.6146]
[1741610124360,0.063,128.87,128.86,39.34938022]
[1741610126345,0.063,128.87,128.84,37.73478022]
[1741610126859,0.063,128.87,128.83,1.5534]
[1741610126860,0.063,128.87,128.85,37.73478022]
[1741610127164,0.063,128.87,128.86,37.73478022]
[1741610130175,0.063,128.89,128.88,20.0]
[1741610130373,0.063,128.89,128.88,95.46956044]
[1741610132558,0.063,128.89,128.88,57.73478022]
[1741610133178,0.063,128.89,128.88,95.46956044]
[1741610135479,0.063,128.89,128.88,57.73478022]
[1741610135652,0.063,128.89,128.88,95.46956044]
[1741610137165,0.063,128.89,128.88,114.1192093]
[1741610138385,0.063,128.92,128.88,67.03791974]
[1741610138573,0.063,128.92,128.91,23.51895987]
[1741610144196,0.063,128.93,128.91,42.16860873]
[1741610144482,0.063,128.93,128.92,23.51895987]
[1741610144983,0.063,128.93,128.92,43.51895987]
[1741610145985,0.063,128.93,128.92,45.11815987]
[1741610148159,0.063,128.93,128.91,23.51895987]
[1741610148364,0.063,128.93,128.92,43.51895987]
[1741610150367,0.063,128.93,128.91,23.51895987]
[1741610150688,0.063,128.93,128.92,43.51895987]
[1741610151463,0.063,128.93,128.87,0.03]
[1741610151665,0.063,128.93,128.9,23.51895987]
[1741610151875,0.063,128.93,128.91,23.51895987]
[1741610152169,0.063,128.93,128.88,23.51895987]
[1741610152370,0.063,128.93,128.9,23.51895987]
[1741610152779,0.063,128.93,128.9,20.0]
[1741610152979,23.58195987,128.93,128.87,23.54895987]
[1741610153182,23.51895987,128.92,128.87,23.54895987]
[1741610153369,23.51895987,128.91,128.87,0.03]
[1741610153573,23.51895987,128.9,128.87,0.03]
[1741610153780,23.80328301,128.91,128.87,0.03]
[1741610153963,23.51895987,128.88,128.87,0.03]
[1741610154389,31.27805987,128.88,128.87,0.03]
[1741610155085,31.27685987,128.9,128.87,0.03]
[1741610155286,7.7579,128.9,128.87,0.03]
[1741610155678,104.61895987,128.91,128.87,0.03]
[1741610156277,81.1,128.91,128.87,23.54895987]
[1741610156580,88.8573,128.91,128.87,23.54895987]
[1741610157169,81.1,128.91,128.88,23.51895987]
[1741610157370,88.8574,128.91,128.87,23.54895987]
[1741610157785,0.063,128.93,128.88,23.51895987]
[1741610158092,0.063,128.93,128.91,23.51895987]
[1741610158267,7.8191,128.93,128.89,23.51895987]
[1741610158674,31.33805987,128.93,128.87,21.6355]
[1741610158892,31.33805987,128.93,128.88,23.51895987]
[1741610160076,23.51895987,128.91,128.87,0.03]
[1741610160399,0.063,128.93,128.88,23.51895987]
[1741610160602,0.063,128.93,128.89,23.51895987]
[1741610160898,0.063,128.93,128.9,23.51895987]
[1741610161193,0.063,128.93,128.91,23.51895987]
[1741610161378,0.063,128.93,128.9,23.51895987]
[1741610161581,23.51895987,128.92,128.87,0.03]
[1741610161767,23.51895987,128.92,128.87,23.54895987]
[1741610161974,31.33815987,128.93,128.88,23.51895987]
[1741610162276,31.33815987,128.93,128.87,43.54895987]
[1741610162477,23.51895987,128.92,128.87,43.54895987]
[1741610162895,27.2095,128.93,128.87,43.54895987]
[1741610163094,0.063,128.93,128.89,23.51895987]
[1741610163596,7.8191,128.93,128.88,23.51895987]
[1741610163974,0.063,128.93,128.9,43.51895987]
[1741610164173,0.063,128.93,128.92,23.51895987]
[1741610164387,0.063,128.93,128.91,23.51895987]
[1741610165007,0.063,128.93,128.89,23.51895987]
[1741610165207,23.58195987,128.93,128.87,23.54895987]
[1741610165408,23.51895987,128.92,128.87,23.54895987]
[1741610166101,0.063,128.93,128.87,23.54895987]
[1741610166314,23.58195987,128.93,128.88,23.51895987]
[1741610166493,31.27565987,128.92,128.87,43.54895987]
[1741610166817,31.27565987,128.92,128.88,23.51895987]
[1741610166818,7.7567,128.92,128.88,23.51895987]
[1741610167093,0.063,128.93,128.91,23.51895987]
[1741610168001,0.063,128.93,128.92,23.51895987]
[1741610169677,0.063,128.93,128.91,23.51895987]
[1741610170006,0.063,128.93,128.92,23.51895987]
[1741610171291,0.063,128.93,128.91,20.0]
[1741610171494,0.063,128.93,128.91,43.51895987]
[1741610172086,0.063,128.93,128.92,23.51895987]
[1741610173105,0.063,128.93,128.91,43.51895987]
[1741610174205,0.063,128.93,128.92,23.51895987]
[1741610175804,0.063,128.93,128.92,43.51895987]
[1741610177225,0.063,128.93,128.92,20.0]
[1741610177385,0.063,128.93,128.92,43.51895987]
[1741610181526,0.063,128.93,128.92,23.51895987]
[1741610181898,0.063,128.93,128.92,43.51895987]
[1741610182905,0.063,128.93,128.92,23.51895987]
[1741610183514,0.063,128.95,128.94,20.0]
[1741610183828,0.063,128.95,128.94,67.03791974]
[1741610183998,0.063,128.96,128.94,67.03791974]
[1741610184193,0.063,128.96,128.95,23.51895987]
[1741610184416,0.063,129.0,128.98,20.0]
[1741610184631,0.063,129.0,128.99,23.51895987]
[1741610186304,0.063,129.0,128.94,27.34661095]
[1741610186518,0.063,129.0,128.99,23.51895987]
[1741610187006,0.063,129.0,128.99,43.51895987]
[1741610187611,0.063,129.0,128.99,67.03791974]
[1741610187818,0.063,129.0,128.99,48.67201974]
[1741610188618,0.063,129.0,128.99,55.29421974]
[1741610190122,0.063,129.05,129.02,20.0]
[1741610190416,35.1806,129.11,129.02,20.0]
[1741610190417,81.1,129.14,129.07,20.0]
[1741610190736,23.72412144,129.12,129.07,43.51895987]
[1741610190930,23.51895987,129.11,129.06,23.51895987]
[1741610191344,23.51895987,129.11,129.04,1.5515]
[1741610191345,31.32675987,129.12,129.07,23.51895987]
[1741610191645,7.8078,129.12,129.08,23.51895987]
[1741610192212,0.063,129.12,129.09,23.51895987]
[1741610192446,0.063,129.12,129.06,23.51895987]
[1741610192614,0.063,129.12,129.09,23.51895987]
[1741610193339,0.063,129.12,129.1,23.51895987]
[1741610193716,0.063,129.12,129.11,23.51895987]
[1741610195329,0.063,129.12,129.09,20.0]
[1741610195537,0.063,129.12,129.11,23.51895987]
[1741610199541,0.063,129.12,129.06,3.96806672]
[1741610199751,23.58195987,129.12,129.06,23.51895987]
[1741610200044,23.51895987,129.11,129.06,23.51895987]
[1741610200222,23.58195987,129.12,129.07,23.51895987]
[1741610200423,0.063,129.12,129.09,23.51895987]
[1741610200739,0.063,129.12,129.1,23.51895987]
[1741610201537,0.063,129.12,129.08,23.51895987]
[1741610201751,0.063,129.12,129.11,23.51895987]
[1741610202130,0.063,129.12,129.1,23.51895987]
[1741610202638,0.063,129.12,129.08,23.51895987]
[1741610202824,0.063,129.12,129.07,20.0]
[1741610203155,23.58195987,129.12,129.07,43.51895987]
[1741610203457,0.063,129.12,129.08,23.51895987]
[1741610203755,7.8077,129.12,129.07,23.51895987]
[1741610204053,0.063,129.12,129.09,23.51895987]
[1741610204261,0.063,129.12,129.07,20.0]
[1741610204262,0.063,129.12,129.1,23.51895987]
[1741610205126,0.063,129.12,129.11,23.51895987]
[1741610211467,0.063,129.12,129.09,23.51895987]
[1741610211632,0.063,129.12,129.09,20.0]
[1741610211833,0.063,129.12,129.09,43.51895987]
[1741610212134,0.063,129.12,129.1,23.51895987]
[1741610212452,0.063,129.12,129.11,23.51895987]
[1741610213169,0.063,129.12,129.09,20.0]
[1741610213332,0.063,129.12,129.1,23.51895987]
[1741610213966,0.063,129.12,129.11,23.51895987]
[1741610214172,0.063,129.12,129.09,43.51895987]
[1741610214475,23.58195987,129.12,129.07,23.51895987]
[1741610214847,23.58195987,129.12,129.07,43.51895987]
[1741610215043,0.063,129.12,129.08,23.51895987]
[1741610216331,31.32665987,129.12,129.06,20.063]
[1741610216526,31.32665987,129.12,129.07,23.51895987]
[1741610216753,23.51895987,129.11,129.06,0.063]
[1741610217157,32.83975987,129.12,129.07,23.51895987]
[1741610217335,9.3208,129.12,129.07,23.51895987]
[1741610217541,9.3208,129.12,129.08,23.51895987]
[1741610218272,7.8077,129.12,129.08,23.51895987]
[1741610219465,0.063,129.12,129.08,23.51895987]
[1741610219642,0.063,129.12,129.09,23.51895987]
[1741610220649,23.51895987,129.11,129.06,23.58195987]
[1741610220864,0.28432314,129.09,129.06,0.063]
[1741610221041,23.80328301,129.09,129.06,0.063]
[1741610221244,23.80328301,129.09,129.06,20.063]
[1741610221445,23.80328301,129.09,129.06,0.063]
[1741610221646,23.51895987,129.08,129.06,0.063]
[1741610222147,23.66112144,129.09,129.06,0.063]
[1741610222370,81.24216157,129.1,129.06,0.063]
[1741610222569,81.24216157,129.1,129.06,23.58195987]
[1741610222570,88.98826157,129.1,129.06,23.58195987]
[1741610222747,81.24216157,129.1,129.06,23.58195987]
[1741610223255,88.98816157,129.1,129.06,23.58195987]
[1741610224045,81.24216157,129.1,129.06,23.58195987]
[1741610224265,0.063,129.12,129.09,23.51895987]
[1741610224455,0.063,129.12,129.08,23.51895987]
[1741610224767,23.58195987,129.12,129.07,23.51895987]
[1741610225358,0.063,129.12,129.08,23.51895987]
[1741610225552,0.063,129.12,129.1,23.51895987]
[1741610226476,0.063,129.12,129.11,37.53462553]
[1741610230269,0.063,129.12,129.11,75.06925106]
[1741610230658,0.063,129.12,129.11,37.53462553]
[1741610234156,0.063,129.12,129.09,20.0]
[1741610234356,0.063,129.12,129.1,37.53462553]
[1741610235680,0.063,129.12,129.11,37.53462553]
[1741610241884,0.063,129.12,129.09,37.53462553]
[1741610242086,0.063,129.12,129.11,37.53462553]
[1741610245189,0.20516157,129.12,129.08,37.53462553]
[1741610245481,37.53462553,129.1,129.06,0.063]
[1741610245872,7.7465,129.09,129.06,0.063]
[1741610246384,18.933972,129.08,129.06,0.063]
[1741610246583,0.28432314,129.08,129.06,0.063]
[1741610246964,37.81894867,129.08,129.06,0.063]
[1741610247169,0.28432314,129.07,129.06,0.063]
[1741610247487,7.7465,129.09,129.06,0.063]
[1741610247877,45.28112553,129.09,129.06,0.063]
[1741610248188,7.7465,129.09,129.06,0.063]
[1741610248566,0.28432314,129.09,129.06,0.063]
[1741610249085,0.14216157,129.1,129.06,0.063]
[1741610249293,8.09212314,129.12,129.08,23.47742622]
[1741610249491,0.063,129.12,129.08,23.47742622]
[1741610249995,23.82474936,129.12,129.07,23.47742622]
[1741610250180,23.47742622,129.11,129.06,23.54042622]
[1741610250380,23.47742622,129.11,129.06,0.063]
[1741610250677,23.47742622,129.11,129.06,23.54042622]
[1741610251001,42.47439822,129.12,129.07,23.47742622]
[1741610251182,42.47439822,129.12,129.06,23.54042622]
[1741610251383,42.47439822,129.12,129.07,23.47742622]
[1741610251589,42.47439822,129.12,129.06,23.54042622]
[1741610251785,0.063,129.12,129.07,23.47742622]
[1741610251995,0.063,129.12,129.1,23.47742622]
[1741610252289,0.063,129.12,129.11,23.47742622]
[1741610252600,0.063,129.12,129.1,23.47742622]
[1741610252775,0.063,129.12,129.11,23.47742622]
[1741610253986,0.063,129.12,129.1,43.47742622]
[1741610254492,0.063,129.12,129.11,23.47742622]
[1741610255094,0.063,129.12,129.06,33.52417129]
[1741610255282,0.063,129.12,129.09,43.47742622]
[1741610255490,7.7425,129.16,129.11,23.47742622]
[1741610255687,7.7425,129.16,129.12,23.47742622]
[1741610255876,81.1,129.17,129.12,23.47742622]
[1741610255877,0.28432314,129.17,129.12,23.47742622]